[Event "Paul Kerese Mälestusfestival 2022 Välkturniir"]
[Site "Paul Kerese Mälestusfestival 2022 Kiirturniir"]
[Date "????.??.??"]
[Round "3.3"]
[White "Krilovs, Nikolajs"]
[Black "Chukavin, Kirill"]
[Result "0-1"]
[TimeControl "3 min + 2 sek iga käigu eest"]
[BlackTitle "FM"]
[WhiteElo "1971"]
[BlackElo "2280"]

1. d4 {[%clk 00:03:02]} {[%emt 00:00:02]} Nf6 {[%clk 00:03:03]} {[%emt
00:00:01]} 2. Nf3 {[%clk 00:03:02]} {[%emt 00:00:01]} d5 {[%clk 00:03:04]} 3.
c4 {[%clk 00:02:59]} {[%emt 00:00:05]} e6 {[%clk 00:03:05]} {[%emt 00:00:01]} 4.
Nc3 {[%clk 00:03:00]} c6 {[%clk 00:03:02]} {[%emt 00:00:05]} 5. e3 {[%clk
00:03:00]} {[%emt 00:00:01]} Nbd7 {[%clk 00:03:02]} {[%emt 00:00:02]} 6. cxd5
{[%clk 00:02:52]} {[%emt 00:00:11]} exd5 {[%clk 00:03:02]} {[%emt 00:00:02]} 7.
Bd3 {[%clk 00:02:52]} {[%emt 00:00:02]} Bd6 {[%clk 00:03:01]} {[%emt 00:00:03]}
8. h3 {[%clk 00:02:52]} {[%emt 00:00:02]} O-O {[%clk 00:03:00]} {[%emt
00:00:04]} 9. Rb1 {[%clk 00:02:52]} {[%emt 00:00:02]} a5 {[%clk 00:03:00]}
{[%emt 00:00:02]} 10. O-O {[%clk 00:02:52]} {[%emt 00:00:02]} Re8 {[%clk
00:02:58]} {[%emt 00:00:05]} 11. Qc2 {[%clk 00:02:36]} {[%emt 00:00:18]} Qe7
{[%clk 00:02:37]} {[%emt 00:00:22]} 12. Nd2 {[%clk 00:02:12]} {[%emt 00:00:26]}
Nf8 {[%clk 00:02:19]} {[%emt 00:00:20]} 13. a3 {[%clk 00:02:10]} {[%emt
00:00:04]} Ng6 {[%clk 00:02:09]} {[%emt 00:00:12]} 14. Na4 {[%clk 00:01:56]}
{[%emt 00:00:16]} Qc7 {[%clk 00:01:37]} {[%emt 00:00:34]} 15. Qb3 {[%clk
00:01:41]} {[%emt 00:00:17]} b5 {[%clk 00:01:33]} {[%emt 00:00:06]} 16. Nc5
{[%clk 00:01:40]} {[%emt 00:00:02]} Bxc5 {[%clk 00:01:19]} {[%emt 00:00:17]} 17.
dxc5 {[%clk 00:01:41]} {[%emt 00:00:02]} Ne5 {[%clk 00:01:20]} 18. Qc2 {[%clk
00:01:31]} {[%emt 00:00:11]} g6 {[%clk 00:00:57]} {[%emt 00:00:25]} 19. b3
{[%clk 00:01:32]} {[%emt 00:00:02]} Nxd3 {[%clk 00:00:54]} {[%emt 00:00:05]} 20.
Qxd3 {[%clk 00:01:32]} {[%emt 00:00:01]} Bf5 {[%clk 00:00:55]} {[%emt
00:00:01]} 21. Qd4 {[%clk 00:01:30]} {[%emt 00:00:04]} Nd7 {[%clk 00:00:15]}
{[%emt 00:00:42]} 22. Bb2 {[%clk 00:01:25]} {[%emt 00:00:07]} Qe5 {[%clk
00:00:11]} {[%emt 00:00:06]} 23. Qh4 {[%clk 00:01:18]} {[%emt 00:00:09]} Qe7
{[%clk 00:00:13]} 24. Qd4 {[%emt 00:00:12]} f6 25. Rbc1 {[%emt 00:00:02]} Qe5
26. Nf3 {[%clk 00:01:06]} {[%emt 00:00:04]} Qxd4 {[%clk 00:00:11]} {[%emt
00:00:07]} 27. Nxd4 {[%clk 00:01:06]} {[%emt 00:00:01]} Ne5 {[%clk 00:00:13]}
28. Ba1 {[%clk 00:00:43]} {[%emt 00:00:26]} Bd7 {[%clk 00:00:12]} {[%emt
00:00:03]} 29. f4 {[%clk 00:00:40]} {[%emt 00:00:05]} Nf7 {[%clk 00:00:12]}
{[%emt 00:00:02]} 30. Kf2 {[%clk 00:00:40]} {[%emt 00:00:02]} Kg7 {[%clk
00:00:14]} 31. Nf3 {[%clk 00:00:39]} {[%emt 00:00:03]} Re4 {[%clk 00:00:11]}
{[%emt 00:00:04]} 32. g4 {[%clk 00:00:39]} {[%emt 00:00:01]} Rae8 {[%clk
00:00:11]} {[%emt 00:00:03]} 33. Rfe1 {[%clk 00:00:40]} h6 {[%clk 00:00:09]}
{[%emt 00:00:04]} 34. Re2 {[%clk 00:00:40]} {[%emt 00:00:02]} R4e6 {[%clk
00:00:10]} {[%emt 00:00:02]} 35. Rg1 {[%clk 00:00:40]} {[%emt 00:00:01]} Kh7
{[%clk 00:00:09]} {[%emt 00:00:03]} 36. h4 {[%clk 00:00:39]} {[%emt 00:00:03]}
Nd8 {[%clk 00:00:07]} {[%emt 00:00:05]} 37. g5 {[%clk 00:00:37]} {[%emt
00:00:04]} fxg5 {[%clk 00:00:07]} {[%emt 00:00:03]} 38. hxg5 {[%clk 00:00:33]}
{[%emt 00:00:07]} h5 {[%clk 00:00:08]} 39. Nd4 {[%clk 00:00:30]} {[%emt
00:00:04]} Re4 {[%clk 00:00:09]} {[%emt 00:00:01]} 40. Rg3 {[%clk 00:00:31]}
{[%emt 00:00:02]} Bg4 {[%clk 00:00:09]} {[%emt 00:00:02]} 41. Re1 {[%clk
00:00:31]} {[%emt 00:00:01]} Ne6 {[%clk 00:00:07]} {[%emt 00:00:04]} 42. Nxe6
{[%clk 00:00:28]} {[%emt 00:00:05]} R8xe6 {[%clk 00:00:08]} {[%emt 00:00:01]}
43. Rh1 {[%clk 00:00:29]} {[%emt 00:00:01]} Kg8 {[%clk 00:00:09]} 44. Re1
{[%clk 00:00:30]} a4 {[%clk 00:00:07]} {[%emt 00:00:04]} 45. b4 {[%clk
00:00:30]} Rc4 {[%clk 00:00:08]} {[%emt 00:00:01]} 46. Bd4 {[%clk 00:00:21]}
{[%emt 00:00:11]} Rc2+ {[%clk 00:00:07]} {[%emt 00:00:03]} 47. Kg1 {[%clk
00:00:22]} {[%emt 00:00:01]} Ra2 {[%clk 00:00:07]} {[%emt 00:00:02]} 48. Rg2
{[%clk 00:00:13]} {[%emt 00:00:10]} Rxa3 {[%clk 00:00:08]} {[%emt 00:00:01]} 49.
Rd2 {[%clk 00:00:13]} {[%emt 00:00:02]} Rb3 {[%clk 00:00:09]} {[%emt 00:00:01]}
50. e4 {[%clk 00:00:11]} {[%emt 00:00:04]} Rxe4 {[%clk 00:00:07]} {[%emt
00:00:04]} 51. Rxe4 {[%clk 00:00:12]} {[%emt 00:00:01]} dxe4 {[%clk 00:00:09]}
52. Bf6 {[%clk 00:00:12]} {[%emt 00:00:02]} a3 {[%clk 00:00:06]} {[%emt
00:00:04]} 53. Rd8+ {[%clk 00:00:11]} {[%emt 00:00:02]} Kf7 {[%clk 00:00:08]}
{[%emt 00:00:01]} 54. Ra8 {[%clk 00:00:12]} {[%emt 00:00:01]} Ke6 {[%clk
00:00:06]} {[%emt 00:00:04]} 55. Kf2 {[%clk 00:00:12]} Kd5 {[%clk 00:00:07]}
{[%emt 00:00:02]} 56. Rd8+ {[%clk 00:00:08]} {[%emt 00:00:06]} Kc4 {[%clk
00:00:05]} {[%emt 00:00:05]} 57. Rd4+ {[%clk 00:00:09]} {[%emt 00:00:01]} Kc3
{[%clk 00:00:06]} 58. Rxe4+ {[%clk 00:00:10]} {[%emt 00:00:02]} Kc2 {[%clk
00:00:07]} {[%emt 00:00:01]} 59. Re3 {[%clk 00:00:07]} {[%emt 00:00:05]} Rxe3
{[%clk 00:00:06]} {[%emt 00:00:04]} 60. Kxe3 {[%clk 00:00:08]} a2 {[%clk
00:00:05]} {[%emt 00:00:03]} 61. Ba1 {[%clk 00:00:08]} {[%emt 00:00:02]} Kb1
{[%clk 00:00:06]} {[%emt 00:00:01]} 62. Bc3 {[%clk 00:00:08]} {[%emt 00:00:01]}
a1=Q {[%clk 00:00:05]} {[%emt 00:00:03]} 63. Bxa1 Kxa1 {[%clk 00:00:07]} 64.
Kd4 {[%clk 00:00:10]} h4 {[%clk 00:00:06]} {[%emt 00:00:02]} 0-1

[Event "Paul Kerese Mälestusfestival 2022 Välkturniir"]
[Site "Paul Kerese Mälestusfestival 2022 Kiirturniir"]
[Date "????.??.??"]
[Round "3.4"]
[White "Golubovskis, Maksims"]
[Black "Agafonov, Yuri"]
[Result "1-0"]
[TimeControl "3 min + 2 sek iga käigu eest"]
[WhiteElo "2163"]
[BlackElo "1913"]

1. e4 {[%clk 00:03:03]} g6 {[%clk 00:03:02]} {[%emt 00:00:02]} 2. d4 {[%clk
00:03:04]} Bg7 {[%clk 00:03:04]} {[%emt 00:00:02]} 3. Nc3 {[%clk 00:03:05]} d6
{[%clk 00:03:04]} {[%emt 00:00:02]} 4. Be3 {[%clk 00:03:06]} Nd7 {[%clk
00:03:05]} {[%emt 00:00:02]} 5. Qd2 {[%clk 00:03:06]} {[%emt 00:00:02]} a6
{[%clk 00:03:05]} {[%emt 00:00:02]} 6. a4 {[%clk 00:03:07]} b6 {[%clk
00:03:04]} {[%emt 00:00:03]} 7. f4 {[%clk 00:03:08]} {[%emt 00:00:01]} Bb7
{[%clk 00:03:05]} {[%emt 00:00:01]} 8. d5 {[%clk 00:03:09]} Ngf6 {[%clk
00:03:02]} {[%emt 00:00:05]} 9. Nf3 {[%clk 00:03:07]} {[%emt 00:00:03]} O-O
{[%clk 00:02:51]} {[%emt 00:00:14]} 10. Bc4 {[%clk 00:02:57]} {[%emt 00:00:12]}
c6 {[%clk 00:02:39]} {[%emt 00:00:14]} 11. O-O {[%clk 00:02:36]} {[%emt
00:00:23]} cxd5 {[%clk 00:02:35]} {[%emt 00:00:07]} 12. exd5 {[%clk 00:02:32]}
{[%emt 00:00:05]} Rc8 {[%clk 00:02:34]} {[%emt 00:00:03]} 13. Bb3 {[%clk
00:02:30]} {[%emt 00:00:04]} Nc5 {[%clk 00:02:15]} {[%emt 00:00:21]} 14. Rad1
{[%clk 00:02:31]} Nxb3 {[%clk 00:01:53]} {[%emt 00:00:24]} 15. cxb3 {[%clk
00:02:31]} b5 {[%clk 00:01:50]} {[%emt 00:00:07]} 16. axb5 {[%clk 00:02:16]}
{[%emt 00:00:18]} axb5 {[%clk 00:01:51]} {[%emt 00:00:01]} 17. Bd4 {[%clk
00:01:59]} {[%emt 00:00:18]} b4 {[%clk 00:01:45]} {[%emt 00:00:08]} 18. Ne2
{[%clk 00:02:00]} {[%emt 00:00:01]} Nxd5 {[%clk 00:01:38]} {[%emt 00:00:09]} 19.
Bxg7 {[%clk 00:01:59]} {[%emt 00:00:02]} Kxg7 {[%clk 00:01:39]} {[%emt
00:00:01]} 20. f5 {[%clk 00:01:53]} {[%emt 00:00:08]} Qb6+ {[%clk 00:01:37]}
{[%emt 00:00:04]} 21. Ned4 {[%clk 00:01:55]} Nf6 {[%clk 00:01:33]} {[%emt
00:00:06]} 22. Kh1 {[%clk 00:01:51]} {[%emt 00:00:06]} Rc5 {[%clk 00:01:32]}
{[%emt 00:00:03]} 23. Rfe1 {[%clk 00:01:44]} {[%emt 00:00:09]} Bxf3 {[%clk
00:01:25]} {[%emt 00:00:08]} 24. Nxf3 {[%clk 00:01:42]} {[%emt 00:00:05]} Rd5
{[%clk 00:01:21]} {[%emt 00:00:07]} 25. Qc2 {[%clk 00:01:27]} {[%emt 00:00:16]}
Rxd1 {[%clk 00:01:18]} {[%emt 00:00:04]} 26. Qxd1 {[%clk 00:01:26]} {[%emt
00:00:04]} Ng4 {[%clk 00:01:12]} {[%emt 00:00:08]} 27. Qd4+ {[%clk 00:01:05]}
{[%emt 00:00:23]} Qxd4 {[%clk 00:01:13]} 28. Nxd4 {[%clk 00:01:07]} Rc8 {[%clk
00:01:10]} {[%emt 00:00:05]} 29. h3 {[%clk 00:01:01]} {[%emt 00:00:07]} Ne5
{[%clk 00:01:11]} 30. Re4 {[%clk 00:00:32]} {[%emt 00:00:31]} Kf6 {[%clk
00:01:11]} {[%emt 00:00:03]} 31. fxg6 {[%clk 00:00:31]} {[%emt 00:00:03]} hxg6
{[%clk 00:01:12]} {[%emt 00:00:01]} 32. Nb5 {[%clk 00:00:14]} {[%emt 00:00:20]}
Rc2 {[%clk 00:00:57]} {[%emt 00:00:15]} 33. Rf4+ {[%clk 00:00:15]} {[%emt
00:00:02]} Kg7 {[%clk 00:00:57]} {[%emt 00:00:01]} 34. Rxb4 {[%clk 00:00:16]}
{[%emt 00:00:01]} Rxb2 {[%clk 00:00:58]} 35. Nd4 {[%clk 00:00:14]} {[%emt
00:00:04]} Rd2 {[%clk 00:00:57]} {[%emt 00:00:03]} 36. Nb5 {[%clk 00:00:09]}
{[%emt 00:00:07]} Rb2 {[%clk 00:00:53]} {[%emt 00:00:05]} 37. Nd4 {[%clk
00:00:08]} {[%emt 00:00:03]} Rd2 {[%clk 00:00:54]} {[%emt 00:00:01]} 38. Nb5
{[%clk 00:00:10]} Rd5 {[%clk 00:00:52]} {[%emt 00:00:04]} 39. Nc3 {[%clk
00:00:07]} {[%emt 00:00:05]} Rd3 {[%clk 00:00:52]} {[%emt 00:00:01]} 40. Nb5
{[%clk 00:00:05]} {[%emt 00:00:05]} Rd1+ {[%clk 00:00:47]} {[%emt 00:00:06]} 41.
Kh2 {[%clk 00:00:06]} Rd3 {[%clk 00:00:48]} {[%emt 00:00:01]} 42. Nc7 {[%clk
00:00:04]} {[%emt 00:00:05]} Nc6 {[%clk 00:00:46]} {[%emt 00:00:04]} 43. Rb6
{[%clk 00:00:05]} {[%emt 00:00:01]} Nd4 {[%clk 00:00:44]} {[%emt 00:00:03]} 44.
b4 {[%clk 00:00:06]} {[%emt 00:00:02]} Rb3 {[%clk 00:00:44]} {[%emt 00:00:02]}
45. b5 {[%clk 00:00:04]} {[%emt 00:00:05]} Kh6 {[%clk 00:00:41]} {[%emt
00:00:04]} 46. Rb7 {[%clk 00:00:04]} {[%emt 00:00:01]} e5 {[%clk 00:00:41]}
{[%emt 00:00:02]} 47. b6 {[%clk 00:00:05]} {[%emt 00:00:01]} e4 {[%clk
00:00:41]} {[%emt 00:00:02]} 48. Nd5 {[%clk 00:00:06]} {[%emt 00:00:01]} e3
{[%clk 00:00:39]} {[%emt 00:00:04]} 49. Rxf7 {[%clk 00:00:04]} {[%emt
00:00:05]} e2 {[%clk 00:00:37]} {[%emt 00:00:04]} 50. Re7 {[%clk 00:00:05]}
{[%emt 00:00:01]} Rb5 {[%clk 00:00:38]} 51. Nf4 {[%clk 00:00:04]} {[%emt
00:00:02]} Re5 {[%clk 00:00:36]} {[%emt 00:00:03]} 52. Rxe5 {[%clk 00:00:05]}
{[%emt 00:00:03]} dxe5 {[%clk 00:00:37]} 53. Nxe2 {[%clk 00:00:05]} {[%emt
00:00:02]} Nc6 {[%clk 00:00:38]} 54. Kg3 {[%clk 00:00:04]} {[%emt 00:00:03]}
Kg5 {[%clk 00:00:39]} 55. Kf3 {[%clk 00:00:05]} {[%emt 00:00:01]} Kf5 {[%clk
00:00:40]} 56. g4+ {[%clk 00:00:06]} Ke6 {[%clk 00:00:42]} 57. b7 {[%clk
00:00:03]} {[%emt 00:00:05]} Kd5 {[%clk 00:00:42]} {[%emt 00:00:02]} 58. Nc3+
{[%clk 00:00:03]} {[%emt 00:00:02]} Kc5 {[%clk 00:00:41]} {[%emt 00:00:02]} 59.
Ke4 {[%clk 00:00:05]} {[%emt 00:00:02]} Kb6 {[%clk 00:00:42]} 60. Nd5+ {[%clk
00:00:03]} {[%emt 00:00:04]} Kxb7 {[%emt 00:00:01]} 61. Nf6 {[%clk 00:00:04]}
Kc7 {[%emt 00:00:02]} 62. Kd5 Kb6 {[%clk 00:00:43]} {[%emt 00:00:03]} 63. Nd7+
{[%clk 00:00:07]} Kc7 {[%clk 00:00:44]} {[%emt 00:00:01]} 64. Nxe5 {[%clk
00:00:07]} {[%emt 00:00:02]} Ne7+ {[%clk 00:00:41]} {[%emt 00:00:05]} 65. Ke6
{[%clk 00:00:09]} {[%emt 00:00:01]} Kd8 {[%clk 00:00:42]} 66. Kf6 {[%clk
00:00:08]} {[%emt 00:00:03]} Nd5+ {[%clk 00:00:42]} {[%emt 00:00:02]} 67. Kg5
{[%clk 00:00:08]} {[%emt 00:00:02]} Ke7 {[%clk 00:00:42]} {[%emt 00:00:02]} 68.
Nxg6+ {[%clk 00:00:09]} Kf7 {[%clk 00:00:43]} 69. Nf4 {[%clk 00:00:10]} {[%emt
00:00:02]} Ne3 {[%clk 00:00:44]} 70. h4 {[%clk 00:00:11]} {[%emt 00:00:01]} Nf1
{[%clk 00:00:44]} {[%emt 00:00:02]} 71. h5 {[%clk 00:00:11]} {[%emt 00:00:02]}
Ng3 {[%clk 00:00:45]} 72. Kh4 {[%clk 00:00:11]} {[%emt 00:00:02]} Ne4 {[%clk
00:00:46]} {[%emt 00:00:01]} 73. g5 {[%clk 00:00:12]} {[%emt 00:00:01]} Kg7
{[%clk 00:00:47]} 74. Kg4 {[%clk 00:00:12]} {[%emt 00:00:02]} Nf2+ {[%clk
00:00:48]} 75. Kf5 {[%clk 00:00:13]} Nd1 {[%clk 00:00:48]} {[%emt 00:00:02]} 76.
Nd5 {[%clk 00:00:14]} {[%emt 00:00:01]} Nf2 {[%clk 00:00:49]} {[%emt 00:00:01]}
77. h6+ {[%clk 00:00:14]} {[%emt 00:00:02]} Kh7 {[%clk 00:00:50]} 78. Nf6+
{[%clk 00:00:14]} {[%emt 00:00:01]} Kh8 {[%clk 00:00:51]} 79. g6 {[%clk
00:00:15]} {[%emt 00:00:02]} 1-0

[Event "Paul Kerese Mälestusfestival 2022 Välkturniir"]
[Site "Paul Kerese Mälestusfestival 2022 Kiirturniir"]
[Date "????.??.??"]
[Round "3.6"]
[White "Bernotas, Arturs"]
[Black "Rezniks, Roberts"]
[Result "1-0"]
[TimeControl "3 min + 2 sek iga käigu eest"]
[WhiteTitle "FM"]
[WhiteElo "2382"]
[BlackElo "1433"]

1. e4 {[%clk 00:03:02]} {[%emt 00:00:02]} c5 {[%clk 00:03:03]} {[%emt
00:00:01]} 2. Nf3 {[%clk 00:03:02]} {[%emt 00:00:02]} Nf6 {[%clk 00:02:57]}
{[%emt 00:00:07]} 3. Nc3 {[%clk 00:02:52]} {[%emt 00:00:13]} d5 {[%clk
00:02:58]} {[%emt 00:00:02]} 4. exd5 {[%clk 00:02:51]} {[%emt 00:00:03]} Nxd5
{[%clk 00:02:58]} {[%emt 00:00:01]} 5. Bb5+ {[%clk 00:02:50]} {[%emt 00:00:02]}
Bd7 {[%clk 00:02:59]} {[%emt 00:00:01]} 6. Ne5 {[%clk 00:02:37]} {[%emt
00:00:15]} Bxb5 {[%clk 00:02:38]} {[%emt 00:00:22]} 7. Qf3 {[%clk 00:02:04]}
{[%emt 00:00:36]} f6 {[%clk 00:02:22]} {[%emt 00:00:19]} 8. Qxd5 {[%clk
00:01:36]} {[%emt 00:00:30]} Qxd5 {[%clk 00:01:15]} {[%emt 00:01:08]} 9. Nxd5
{[%clk 00:01:36]} {[%emt 00:00:02]} Na6 {[%clk 00:01:15]} 10. a4 {[%clk
00:01:31]} {[%emt 00:00:07]} Bd7 {[%clk 00:01:06]} {[%emt 00:00:11]} 11. Nxd7
{[%clk 00:01:30]} {[%emt 00:00:04]} Kxd7 {[%clk 00:01:06]} {[%emt 00:00:01]} 12.
c3 {[%clk 00:01:26]} {[%emt 00:00:06]} e6 {[%clk 00:01:01]} {[%emt 00:00:07]}
13. Ne3 {[%clk 00:01:26]} {[%emt 00:00:02]} Bd6 {[%clk 00:01:00]} {[%emt
00:00:03]} 14. Ke2 {[%clk 00:01:26]} {[%emt 00:00:03]} Rad8 {[%clk 00:00:53]}
{[%emt 00:00:09]} 15. d3 {[%clk 00:01:23]} {[%emt 00:00:04]} Nc7 {[%clk
00:00:43]} {[%emt 00:00:12]} 16. Nc4 {[%clk 00:01:23]} {[%emt 00:00:03]} Be7
{[%clk 00:00:38]} {[%emt 00:00:06]} 17. Be3 {[%clk 00:01:20]} {[%emt 00:00:05]}
Nd5 {[%clk 00:00:37]} {[%emt 00:00:03]} 18. Rhd1 {[%clk 00:01:19]} {[%emt
00:00:03]} Nxe3 {[%clk 00:00:25]} {[%emt 00:00:15]} 19. fxe3 {[%clk 00:01:18]}
{[%emt 00:00:02]} e5 {[%clk 00:00:13]} {[%emt 00:00:14]} 20. e4 {[%clk
00:01:18]} {[%emt 00:00:02]} Ke6 {[%clk 00:00:13]} {[%emt 00:00:02]} 21. Ne3
{[%clk 00:01:18]} {[%emt 00:00:02]} g6 {[%clk 00:00:13]} {[%emt 00:00:02]} 22.
Nd5 {[%clk 00:01:19]} {[%emt 00:00:02]} Rd7 {[%clk 00:00:12]} {[%emt 00:00:03]}
23. g4 {[%clk 00:01:18]} {[%emt 00:00:03]} Rhd8 {[%clk 00:00:11]} {[%emt
00:00:02]} 24. Rf1 {[%clk 00:01:16]} {[%emt 00:00:04]} h6 {[%clk 00:00:06]}
{[%emt 00:00:07]} 25. Rf3 {[%clk 00:01:16]} {[%emt 00:00:03]} Rf8 {[%clk
00:00:06]} {[%emt 00:00:03]} 26. Raf1 {[%clk 00:01:15]} {[%emt 00:00:02]} b6
{[%clk 00:00:04]} {[%emt 00:00:04]} 27. h4 {[%clk 00:01:14]} {[%emt 00:00:03]}
h5 {[%clk 00:00:03]} {[%emt 00:00:02]} 28. gxh5 {[%clk 00:01:13]} {[%emt
00:00:03]} gxh5 {[%emt 00:00:02]} 29. Rf5 {[%clk 00:01:13]} Rh8 {[%clk
00:00:04]} {[%emt 00:00:03]} 30. Nxf6 {[%clk 00:01:07]} {[%emt 00:00:08]} Bxf6
{[%clk 00:00:04]} {[%emt 00:00:02]} 31. Rxf6+ {[%clk 00:01:07]} {[%emt
00:00:01]} Ke7 {[%clk 00:00:05]} {[%emt 00:00:01]} 32. Rf7+ {[%clk 00:01:04]}
{[%emt 00:00:05]} Ke8 {[%clk 00:00:05]} {[%emt 00:00:02]} 33. R7f5 {[%clk
00:00:57]} {[%emt 00:00:09]} Rhh7 {[%clk 00:00:03]} {[%emt 00:00:03]} 34. Rxe5+
{[%clk 00:00:56]} {[%emt 00:00:03]} Kd8 {[%clk 00:03:02]} {[%emt 00:00:03]} 1-0

[Event "Paul Kerese Mälestusfestival 2022 Välkturniir"]
[Site "Paul Kerese Mälestusfestival 2022 Kiirturniir"]
[Date "????.??.??"]
[Round "3.7"]
[White "Valdats, Maris"]
[Black "Olde, Margareth"]
[Result "0-1"]
[TimeControl "3 min + 2 sek iga käigu eest"]
[BlackTitle "WIM"]
[WhiteElo "1413"]
[BlackElo "1971"]

1. e4 {[%clk 00:03:02]} {[%emt 00:00:02]} d6 {[%clk 00:03:04]} 2. d4 {[%clk
00:03:01]} {[%emt 00:00:03]} Nf6 {[%clk 00:03:05]} {[%emt 00:00:01]} 3. Nc3
{[%clk 00:03:02]} {[%emt 00:00:01]} e5 {[%clk 00:03:06]} 4. dxe5 {[%clk
00:02:54]} {[%emt 00:00:10]} dxe5 {[%clk 00:03:07]} 5. Qxd8+ {[%clk 00:02:54]}
{[%emt 00:00:02]} Kxd8 {[%clk 00:03:08]} {[%emt 00:00:01]} 6. Bc4 {[%clk
00:02:52]} {[%emt 00:00:03]} Ke8 {[%clk 00:03:10]} {[%emt 00:00:01]} 7. Nf3
{[%clk 00:02:51]} {[%emt 00:00:03]} Nc6 {[%clk 00:02:57]} {[%emt 00:00:15]} 8.
Ng5 {[%clk 00:02:43]} {[%emt 00:00:09]} Nd8 {[%clk 00:02:47]} {[%emt 00:00:13]}
9. O-O {[%clk 00:02:39]} {[%emt 00:00:06]} h6 {[%clk 00:02:48]} 10. Nf3 {[%clk
00:02:40]} Bd6 {[%clk 00:02:43]} {[%emt 00:00:07]} 11. Be3 {[%clk 00:02:28]}
{[%emt 00:00:14]} a6 {[%clk 00:02:44]} {[%emt 00:00:01]} 12. h3 {[%clk
00:02:29]} {[%emt 00:00:01]} Be6 {[%clk 00:02:43]} {[%emt 00:00:03]} 13. Bb3
{[%clk 00:02:27]} {[%emt 00:00:04]} Nc6 {[%clk 00:02:38]} {[%emt 00:00:08]} 14.
Bxe6 {[%clk 00:02:25]} {[%emt 00:00:03]} fxe6 {[%clk 00:02:39]} {[%emt
00:00:01]} 15. Rfd1 {[%clk 00:02:18]} {[%emt 00:00:09]} g5 {[%clk 00:02:39]}
{[%emt 00:00:02]} 16. Nd2 {[%clk 00:02:09]} {[%emt 00:00:11]} Ke7 {[%clk
00:02:35]} {[%emt 00:00:06]} 17. Nc4 {[%clk 00:02:08]} {[%emt 00:00:03]} g4
{[%clk 00:02:30]} {[%emt 00:00:06]} 18. hxg4 {[%clk 00:01:59]} {[%emt
00:00:11]} Nxg4 {[%clk 00:02:30]} {[%emt 00:00:02]} 19. f3 {[%clk 00:01:57]}
{[%emt 00:00:03]} Nxe3 {[%clk 00:02:30]} {[%emt 00:00:03]} 20. Nxe3 {[%clk
00:01:58]} Bc5 {[%clk 00:02:28]} {[%emt 00:00:04]} 21. Re1 {[%clk 00:01:54]}
{[%emt 00:00:05]} Nd4 {[%clk 00:02:27]} {[%emt 00:00:04]} 22. Kf1 {[%clk
00:01:54]} {[%emt 00:00:02]} h5 {[%clk 00:02:26]} {[%emt 00:00:03]} 23. Rac1
{[%clk 00:01:47]} {[%emt 00:00:08]} b5 {[%clk 00:02:26]} {[%emt 00:00:02]} 24.
a4 {[%clk 00:01:38]} {[%emt 00:00:11]} b4 {[%clk 00:02:26]} {[%emt 00:00:02]}
25. Na2 {[%clk 00:01:36]} {[%emt 00:00:03]} h4 {[%clk 00:02:24]} {[%emt
00:00:05]} 26. Ng4 {[%clk 00:01:35]} {[%emt 00:00:03]} Bd6 {[%clk 00:02:21]}
{[%emt 00:00:06]} 27. c4 {[%clk 00:01:18]} {[%emt 00:00:19]} c5 {[%clk
00:02:14]} {[%emt 00:00:08]} 28. Rcd1 {[%clk 00:01:09]} {[%emt 00:00:11]} h3
{[%clk 00:02:12]} {[%emt 00:00:04]} 29. gxh3 {[%clk 00:01:09]} {[%emt
00:00:02]} Nxf3 {[%clk 00:02:12]} {[%emt 00:00:02]} 30. Re3 {[%clk 00:01:08]}
{[%emt 00:00:03]} Nd4 {[%clk 00:02:04]} {[%emt 00:00:10]} 31. Kg2 {[%clk
00:01:08]} {[%emt 00:00:02]} Rag8 {[%clk 00:02:03]} {[%emt 00:00:02]} 32. Nc1
{[%clk 00:00:58]} {[%emt 00:00:12]} Rf8 {[%clk 00:02:02]} {[%emt 00:00:04]} 33.
Nd3 {[%clk 00:00:56]} {[%emt 00:00:04]} Rhg8 {[%clk 00:01:44]} {[%emt
00:00:19]} 34. Rf1 {[%clk 00:00:48]} {[%emt 00:00:10]} Rxf1 {[%clk 00:01:43]}
{[%emt 00:00:03]} 35. Kxf1 {[%clk 00:00:49]} {[%emt 00:00:01]} Rg5 {[%clk
00:01:29]} {[%emt 00:00:16]} 36. Kg2 {[%clk 00:00:47]} {[%emt 00:00:03]} Nc6
{[%clk 00:01:23]} {[%emt 00:00:08]} 37. Kg3 {[%clk 00:00:41]} {[%emt 00:00:09]}
Na5 {[%clk 00:01:24]} 38. Kh4 {[%clk 00:00:38]} {[%emt 00:00:05]} Rg8 {[%clk
00:01:26]} 39. Ndxe5 {[%clk 00:00:36]} {[%emt 00:00:04]} Bxe5 {[%clk 00:01:06]}
{[%emt 00:00:22]} 40. Nxe5 {[%clk 00:00:36]} {[%emt 00:00:02]} Kd6 {[%clk
00:01:07]} 41. Ng4 {[%clk 00:00:21]} {[%emt 00:00:17]} Nxc4 {[%clk 00:01:07]}
{[%emt 00:00:02]} 42. Re2 {[%clk 00:00:21]} {[%emt 00:00:02]} Ke7 {[%clk
00:01:04]} {[%emt 00:00:06]} 43. e5 {[%clk 00:00:22]} {[%emt 00:00:02]} Nb6
{[%clk 00:01:04]} {[%emt 00:00:02]} 44. b3 {[%clk 00:00:21]} {[%emt 00:00:03]}
Rh8+ {[%clk 00:00:53]} {[%emt 00:00:13]} 45. Kg3 {[%clk 00:00:20]} {[%emt
00:00:01]} c4 {[%clk 00:00:48]} {[%emt 00:00:09]} 46. bxc4 Nxc4 {[%clk
00:00:49]} 47. Rc2 {[%clk 00:00:14]} {[%emt 00:00:06]} Rc8 {[%clk 00:00:45]}
{[%emt 00:00:06]} 48. Ne3 {[%clk 00:00:11]} {[%emt 00:00:05]} Nb6 {[%clk
00:00:28]} {[%emt 00:00:20]} 49. Rxc8 {[%clk 00:00:11]} {[%emt 00:00:01]} Nxc8
{[%clk 00:00:29]} {[%emt 00:00:01]} 50. h4 {[%clk 00:00:12]} b3 {[%clk
00:00:26]} {[%emt 00:00:05]} 51. Nc4 {[%emt 00:00:04]} Nb6 {[%emt 00:00:01]} 52.
Nb2 {[%clk 00:00:07]} {[%emt 00:00:04]} Nd7 {[%clk 00:00:29]} {[%emt 00:00:01]}
53. Kf4 {[%clk 00:00:08]} {[%emt 00:00:01]} Kf7 {[%clk 00:00:28]} {[%emt
00:00:03]} 54. Ke4 {[%clk 00:00:07]} {[%emt 00:00:02]} Kg6 {[%clk 00:00:26]}
{[%emt 00:00:05]} 55. Kd4 {[%clk 00:00:08]} Kf5 {[%clk 00:00:21]} {[%emt
00:00:07]} 56. a5 {[%clk 00:00:08]} {[%emt 00:00:02]} Nxe5 {[%clk 00:00:21]}
{[%emt 00:00:02]} 57. Kc3 {[%clk 00:00:08]} {[%emt 00:00:02]} Nc6 {[%clk
00:00:23]} 58. Kxb3 {[%clk 00:00:08]} {[%emt 00:00:03]} Nxa5+ {[%clk 00:00:23]}
{[%emt 00:00:02]} 59. Kb4 {[%clk 00:00:08]} {[%emt 00:00:02]} Nb7 {[%clk
00:00:24]} 60. Nc4 {[%clk 00:00:07]} {[%emt 00:00:02]} e5 {[%clk 00:00:21]}
{[%emt 00:00:06]} 61. h5 {[%clk 00:00:03]} {[%emt 00:00:06]} e4 {[%clk
00:00:21]} {[%emt 00:00:02]} 62. h6 {[%emt 00:00:01]} Kg6 0-1